bitfinex/quotes_SOLUSD_20250106
["timestamp","ask_amount","ask_price","bid_price","bid_amount"]
[1736180171586,21.29960715,222.78,222.71,21.29960715]
[1736180171965,21.29960715,222.74,222.67,21.29960715]
[1736180172382,21.29960715,222.75,222.69,21.29960715]
[1736180173192,21.29960715,222.75,222.66,2.66]
[1736180173193,21.29960715,222.78,222.71,21.29960715]
[1736180173693,21.29960715,222.76,222.69,21.29960715]
[1736180173882,21.29960715,222.74,222.67,21.29960715]
[1736180174195,0.12549,222.73,222.68,21.29960715]
[1736180174493,0.12549,222.73,222.66,22.66]
[1736180174494,0.12549,222.73,222.69,21.29960715]
[1736180174880,21.29960715,222.77,222.7,21.29960715]
[1736180175388,0.12549,222.76,222.7,21.29960715]
[1736180175892,0.12549,222.74,222.68,21.29960715]
[1736180176280,0.12549,222.74,222.69,21.29960715]
[1736180176486,0.12549,222.76,222.7,21.29960715]
[1736180177793,21.29960715,222.75,222.68,21.29960715]
[1736180179503,21.29960715,222.74,222.67,21.29960715]
[1736180179679,21.29960715,222.72,222.65,21.29960715]
[1736180179878,21.29960715,222.71,222.64,21.29960715]
[1736180180082,21.29960715,222.72,222.65,21.29960715]
[1736180180396,6.4891,222.73,222.61,0.12549]
[1736180180397,21.29960715,222.71,222.64,21.29960715]
[1736180180900,21.29960715,222.7,222.63,41.29960715]
[1736180181595,21.29960715,222.7,222.58,6.82021108]
[1736180181596,21.29960715,222.65,222.59,17.973865]
[1736180182102,21.29960715,222.65,222.58,21.42509715]
[1736180182300,21.29960715,222.65,222.59,21.29960715]
[1736180182509,0.12549,222.7,222.61,21.29960715]
[1736180182717,0.12549,222.7,222.64,21.29960715]
[1736180182895,21.29960715,222.71,222.65,21.29960715]
[1736180183212,6.4891,222.73,222.67,21.29960715]
[1736180183703,27.78870715,222.73,222.66,21.29960715]
[1736180183886,21.29960715,222.72,222.65,21.29960715]
[1736180184090,27.78870715,222.73,222.66,21.29960715]
[1736180184691,21.42509715,222.72,222.65,21.29960715]
[1736180184885,21.29960715,222.71,222.63,32.52890715]
[1736180185194,21.29960715,222.7,222.63,32.52890715]
[1736180185393,21.29960715,222.71,222.64,21.29960715]
[1736180185593,21.42509715,222.72,222.65,21.29960715]
[1736180186396,21.29960715,222.71,222.63,32.52890715]
[1736180186595,21.29960715,222.69,222.62,21.29960715]
[1736180186803,21.29960715,222.71,222.63,21.29960715]
[1736180187102,13.31318814,222.7,222.63,13.31318814]
[1736180187283,13.31318814,222.69,222.62,33.31318814]
[1736180187707,13.31318814,222.68,222.61,13.31318814]
[1736180188004,13.31318814,222.67,222.6,13.31318814]
[1736180188184,13.31318814,222.68,222.6,13.31318814]
[1736180188619,13.31318814,222.71,222.63,13.31318814]
[1736180188791,13.31318814,222.71,222.64,13.31318814]
[1736180189182,13.31318814,222.67,222.6,13.31318814]
[1736180189521,23.902374,222.72,222.57,13.31318814]
[1736180189522,13.31318814,222.65,222.57,13.31318814]
[1736180190311,0.12549,222.64,222.57,13.31318814]
[1736180190506,13.31318814,222.67,222.6,13.31318814]
[1736180190708,13.31318814,222.71,222.64,13.31318814]
[1736180191012,13.47618713,222.73,222.67,13.31318814]
[1736180191209,0.12549,222.72,222.68,13.31318814]
[1736180191406,0.12549,222.72,222.66,13.31318814]
[1736180191826,13.31318814,222.69,222.62,13.31318814]
[1736180192031,24.027864,222.72,222.59,11.2312]
[1736180192032,13.43867814,222.68,222.61,13.31318814]
[1736180193125,23.776884,222.72,222.59,11.2312]
[1736180193126,13.31318814,222.69,222.62,13.31318814]
[1736180193316,13.31318814,222.71,222.64,13.31318814]
[1736180193512,13.31318814,222.69,222.62,13.31318814]
[1736180193816,13.31318814,222.66,222.59,13.31318814]
[1736180194019,13.31318814,222.67,222.59,13.31318814]
[1736180194330,13.31318814,222.67,222.6,13.31318814]
[1736180195245,13.31318814,222.68,222.61,13.31318814]
[1736180195571,23.776884,222.72,222.64,13.31318814]
[1736180195707,13.31318814,222.7,222.63,13.31318814]
[1736180196416,13.31318814,222.7,222.62,13.31318814]
[1736180196712,13.31318814,222.68,222.61,13.31318814]
[1736180196924,13.31318814,222.68,222.6,13.31318814]
[1736180197135,13.31318814,222.68,222.61,13.31318814]
[1736180197537,13.31318814,222.69,222.62,13.31318814]
[1736180197936,13.31318814,222.68,222.6,13.31318814]
[1736180198138,0.12549,222.67,222.6,13.31318814]
[1736180199354,0.12549,222.67,222.61,13.31318814]
[1736180199654,13.31318814,222.71,222.64,13.31318814]
[1736180200254,37.34105214,222.68,222.61,13.31318814]
[1736180200460,13.43867814,222.66,222.59,13.31318814]
[1736180200957,13.43867814,222.66,222.6,13.31318814]
[1736180200958,0.12549,222.66,222.6,13.31318814]
[1736180201447,13.31318814,222.66,222.58,13.31318814]
[1736180201652,13.31318814,222.65,222.58,13.31318814]
[1736180201836,13.31318814,222.64,222.57,13.31318814]
[1736180202150,13.31318814,222.65,222.58,13.31318814]
[1736180202650,13.31318814,222.68,222.61,13.31318814]
[1736180202829,13.31318814,222.67,222.6,13.31318814]
[1736180204861,0.12549,222.66,222.6,13.31318814]
[1736180206431,13.31318814,222.68,222.53,26.87735614]
[1736180206432,13.31318814,222.7,222.62,13.31318814]
[1736180206742,7.02711281,222.72,222.68,13.31318814]
[1736180206935,7.02711281,222.72,222.67,13.31318814]
[1736180207351,0.12549,222.71,222.66,13.31318814]
[1736180207837,13.31318814,222.71,222.63,13.31318814]
[1736180208041,13.43867814,222.7,222.63,13.31318814]
[1736180208244,0.12549,222.7,222.63,13.31318814]
[1736180208757,24.027864,222.7,222.63,13.31318814]
[1736180208961,13.31318814,222.69,222.62,13.31318814]
[1736180209460,13.31318814,222.7,222.63,13.31318814]
[1736180209665,13.31318814,222.68,222.61,33.31318814]
[1736180210037,13.31318814,222.68,222.61,13.31318814]
[1736180210244,13.31318814,222.69,222.62,13.31318814]
[1736180210664,0.12549,222.71,222.6,13.31318814]
[1736180210665,13.31318814,222.68,222.6,13.31318814]
[1736180211545,13.31318814,222.68,222.61,13.31318814]
[1736180211863,13.31318814,222.69,222.62,13.31318814]
[1736180212064,13.31318814,222.71,222.63,13.31318814]
[1736180212256,0.12549,222.72,222.65,13.31318814]
[1736180212560,37.34105214,222.72,222.65,13.31318814]
[1736180212771,0.12549,222.7,222.64,13.31318814]
[1736180214965,0.12549,222.7,222.63,13.31318814]
[1736180215551,0.12549,222.7,222.64,13.31318814]
[1736180216251,19.80228814,222.73,222.66,13.31318814]
[1736180216473,13.31318814,222.71,222.64,13.31318814]
[1736180218069,13.31318814,222.71,222.59,11.2314]
[1736180218070,13.31318814,222.71,222.63,13.31318814]
[1736180219265,13.31318814,222.68,222.61,13.31318814]
[1736180219465,13.31318814,222.67,222.6,13.31318814]
[1736180219661,13.31318814,222.66,222.59,13.31318814]
[1736180219970,0.12549,222.65,222.59,13.31318814]
[1736180220344,13.43867814,222.66,222.59,13.31318814]
[1736180220544,13.51621281,222.73,222.54,13.31318814]
[1736180220545,19.73968814,222.62,222.54,13.31318814]
[1736180220767,13.31318814,222.6,222.53,13.31318814]
[1736180220968,13.31318814,222.58,222.47,13.8571]
[1736180221270,37.34105214,222.54,222.43,11.239]
[1736180221584,11.4265,222.62,222.4,13.31318814]
[1736180221585,13.31318814,222.47,222.4,13.31318814]
[1736180221744,13.43867814,222.45,222.38,13.31318814]
[1736180222053,13.31318814,222.42,222.35,13.31318814]
[1736180222371,13.31318814,222.44,222.37,13.31318814]
[1736180222573,0.12549,222.42,222.36,13.31318814]
[1736180223454,13.31318814,222.42,222.35,13.31318814]
[1736180224155,19.33378814,222.4,222.28,1.7373204]
[1736180224354,13.31318814,222.36,222.23,10.0]
[1736180224679,6.0206,222.4,222.3,13.31318814]
[1736180224680,13.31318814,222.37,222.3,13.31318814]
[1736180225083,13.31318814,222.39,222.31,13.31318814]
[1736180225389,6.0206,222.4,222.34,13.31318814]
[1736180225548,6.0206,222.4,222.33,13.31318814]
[1736180225549,19.33378814,222.4,222.33,13.31318814]
[1736180225754,19.33378814,222.4,222.32,13.31318814]
[1736180225969,13.31318814,222.37,222.3,13.31318814]
[1736180226471,13.31318814,222.34,222.27,13.31318814]
[1736180226643,37.21556214,222.35,222.28,13.31318814]
[1736180226850,0.12549,222.34,222.28,13.31318814]
[1736180227044,13.31318814,222.37,222.3,13.31318814]
[1736180227250,0.12549,222.36,222.3,13.31318814]
[1736180227444,0.12549,222.34,222.28,13.31318814]
[1736180227849,13.31318814,222.37,222.29,13.31318814]
[1736180228052,13.31318814,222.38,222.31,13.31318814]
[1736180228347,13.43867814,222.37,222.3,13.31318814]
[1736180229171,6.0206,222.4,222.33,13.31318814]
[1736180229476,13.31318814,222.39,222.32,13.31318814]
[1736180229777,13.43867814,222.38,222.31,13.31318814]
[1736180230364,0.12549,222.36,222.29,13.31318814]
[1736180230673,13.31318814,222.34,222.27,13.31318814]
[1736180231484,33.31318814,222.37,222.3,13.31318814]
[1736180231792,13.31318814,222.34,222.27,13.31318814]
[1736180232949,13.31318814,222.34,222.24,11.249]
[1736180233183,13.31318814,222.34,222.28,13.31318814]
[1736180233591,13.31318814,222.31,222.24,24.56218814]
[1736180234059,13.31318814,222.3,222.23,23.31318814]
[1736180234464,13.31318814,222.3,222.23,10.0]
[1736180234764,13.31318814,222.32,222.26,13.31318814]
[1736180235069,0.12549,222.32,222.26,13.31318814]
[1736180235467,13.43867814,222.32,222.25,13.31318814]
[1736180236281,0.12549,222.32,222.26,13.31318814]
[1736180236465,37.34105214,222.32,222.25,13.31318814]
[1736180236973,0.12549,222.32,222.26,13.31318814]
[1736180237489,37.34105214,222.32,222.24,13.31318814]
[1736180237691,13.31318814,222.28,222.23,10.0]
[1736180237895,13.31318814,222.26,222.23,10.0]
[1736180238371,13.31318814,222.25,222.23,10.0]
[1736180238573,13.31318814,222.24,222.23,10.0]
[1736180239657,13.31318814,222.26,222.2,10.0]
[1736180240067,13.31318814,222.24,222.2,10.0]
[1736180240270,23.902374,222.3,222.2,10.0]
[1736180240459,13.31318814,222.24,222.2,10.0]
[1736180240804,13.31318814,222.23,222.2,10.0]
[1736180241695,0.12549,222.22,222.2,10.0]
[1736180242160,33.31318814,222.27,222.2,23.31318814]
[1736180242356,33.31318814,222.28,222.21,13.31318814]
[1736180242568,13.31318814,222.28,222.21,13.31318814]
[1736180242770,13.43867814,222.27,222.2,23.31318814]
[1736180242998,13.43867814,222.27,222.2,10.0]
[1736180243202,13.31318814,222.26,222.2,10.0]
[1736180244110,0.12549,222.25,222.2,10.0]
[1736180244410,23.902374,222.3,222.2,10.0]
[1736180244411,13.43867814,222.22,222.2,10.0]
[1736180244904,13.31318814,222.27,222.2,23.31318814]
[1736180245074,0.12549,222.29,222.22,13.31318814]
[1736180245075,13.43867814,222.29,222.22,13.31318814]
[1736180245280,13.31318814,222.28,222.21,13.31318814]
[1736180246212,0.12549,222.27,222.22,13.31318814]
[1736180246878,7.9281,222.31,222.26,13.31318814]
[1736180247204,0.12549,222.3,222.27,13.31318814]
[1736180247375,0.12549,222.3,222.26,13.31318814]
[1736180248103,7.9281,222.31,222.27,13.31318814]
[1736180248391,19.72868814,222.36,222.3,13.31318814]
[1736180248597,0.12549,222.35,222.3,13.31318814]
[1736180248899,0.12549,222.35,222.29,13.31318814]
[1736180250003,0.12549,222.35,222.3,13.31318814]
[1736180250183,2.62,222.41,222.34,13.31318814]
[1736180250184,13.31318814,222.41,222.34,13.31318814]
[1736180251074,1.617,222.42,222.36,13.31318814]
[1736180251415,14.86218814,222.48,222.41,13.31318814]
[1736180251577,1.549,222.57,222.43,13.31318814]
[1736180251775,1.549,222.57,222.35,4.31439]
[1736180251776,13.31318814,222.49,222.42,13.31318814]
[1736180251977,13.31318814,222.47,222.4,13.31318814]
[1736180252590,13.31318814,222.42,222.35,13.31318814]
[1736180253679,0.12549,222.41,222.35,13.31318814]
[1736180254084,6.3936,222.44,222.38,13.31318814]
[1736180254287,6.3936,222.44,222.4,13.31318814]
[1736180254492,6.3936,222.44,222.41,13.31318814]
[1736180254680,6.3936,222.44,222.4,13.31318814]
[1736180254879,6.3936,222.44,222.41,13.31318814]
[1736180255085,13.31318814,222.48,222.41,13.31318814]
[1736180255290,0.12549,222.47,222.41,13.31318814]
[1736180255689,13.43867814,222.47,222.4,13.31318814]
[1736180255876,0.12549,222.47,222.41,13.31318814]
[1736180256077,6.5381,222.49,222.43,13.31318814]
[1736180256485,6.5381,222.49,222.37,11.2421]
[1736180256486,19.85128814,222.49,222.42,13.31318814]
[1736180256994,13.43867814,222.48,222.41,13.31318814]
[1736180257190,13.31318814,222.46,222.39,13.31318814]
[1736180257393,13.31318814,222.44,222.37,13.31318814]
[1736180257802,13.31318814,222.42,222.35,13.31318814]
[1736180258107,13.31318814,222.41,222.34,13.31318814]
[1736180258315,13.31318814,222.4,222.34,13.31318814]
[1736180259503,13.31318814,222.41,222.34,13.31318814]
[1736180260619,0.12549,222.39,222.32,13.31318814]
[1736180261414,0.12549,222.38,222.32,13.31318814]
[1736180261617,13.43867814,222.38,222.31,13.31318814]
[1736180261818,0.12549,222.38,222.33,13.31318814]
[1736180261992,13.31318814,222.41,222.34,13.31318814]
[1736180262191,13.31318814,222.42,222.35,13.31318814]
[1736180262423,0.12549,222.4,222.34,13.31318814]
[1736180262596,13.43867814,222.4,222.33,13.31318814]
[1736180262895,13.31318814,222.38,222.31,13.31318814]
[1736180263517,13.43867814,222.38,222.31,13.31318814]
[1736180263719,19.88457814,222.38,222.31,13.31318814]
[1736180264419,13.31318814,222.37,222.3,13.31318814]
[1736180265521,13.31318814,222.35,222.29,13.31318814]
[1736180266216,13.31318814,222.35,222.28,13.31318814]
[1736180266408,13.31318814,222.32,222.26,13.31318814]
[1736180266807,13.31318814,222.32,222.25,13.31318814]
[1736180268343,13.31318814,222.32,222.26,13.31318814]
[1736180268515,13.31318814,222.31,222.25,13.31318814]
[1736180270215,23.902374,222.37,222.3,13.31318814]
[1736180270216,13.31318814,222.37,222.3,13.31318814]
[1736180270535,19.75908814,222.38,222.31,13.31318814]
[1736180270922,6.4459,222.38,222.34,13.31318814]
[1736180271640,6.4459,222.38,222.33,13.31318814]
[1736180271851,6.4459,222.38,222.32,13.31318814]
[1736180272150,6.4459,222.38,222.34,13.31318814]
[1736180272527,1.5389,222.39,222.35,13.31318814]
[1736180272852,13.31318814,222.43,222.36,13.31318814]
[1736180273025,13.31318814,222.41,222.34,13.31318814]
[1736180273345,13.43867814,222.39,222.32,13.31318814]
[1736180273560,13.31318814,222.39,222.32,13.31318814]
[1736180273765,13.31318814,222.4,222.33,13.31318814]
[1736180274126,23.902374,222.43,222.34,13.31318814]
[1736180274356,23.902374,222.43,222.33,13.31318814]
[1736180274357,13.43867814,222.4,222.33,13.31318814]
[1736180274536,7.8997,222.44,222.32,13.31318814]
[1736180274537,13.31318814,222.39,222.32,13.31318814]
[1736180275165,13.31318814,222.38,222.31,13.31318814]
[1736180275370,13.31318814,222.32,222.25,13.31318814]
[1736180275551,13.31318814,222.31,222.24,26.62637614]
[1736180276151,13.31318814,222.31,222.24,13.31318814]
[1736180276435,13.43867814,222.32,222.25,13.31318814]
[1736180276843,13.43867814,222.32,222.2,25.08090689]
[1736180276844,2.62,222.41,222.29,13.31318814]
[1736180277141,13.31318814,222.36,222.29,13.31318814]
[1736180277456,0.12549,222.31,222.25,13.31318814]
[1736180278642,0.12549,222.31,222.26,13.31318814]
[1736180280261,0.12549,222.31,222.28,13.31318814]
[1736180280436,0.12549,222.31,222.27,13.31318814]
[1736180280635,13.43867814,222.31,222.24,13.31318814]
[1736180281047,13.43867814,222.31,222.25,13.31318814]
[1736180281273,0.12549,222.31,222.25,13.31318814]
[1736180281437,24.027864,222.31,222.25,13.31318814]
[1736180281637,37.34105214,222.31,222.24,13.31318814]
[1736180282037,0.12549,222.31,222.26,13.31318814]
[1736180282252,0.12549,222.31,222.27,13.31318814]
[1736180282480,0.12549,222.31,222.26,13.31318814]
[1736180282678,0.12549,222.31,222.25,13.31318814]
[1736180283659,0.12549,222.31,222.26,13.31318814]
[1736180283856,0.12549,222.31,222.25,13.31318814]
[1736180284187,13.43867814,222.31,222.24,13.31318814]
[1736180285087,13.43867814,222.31,222.26,13.31318814]
[1736180285088,0.12549,222.31,222.26,13.31318814]
[1736180285758,0.12549,222.31,222.27,13.31318814]
[1736180286159,0.12549,222.31,222.26,13.31318814]
[1736180286775,0.12549,222.31,222.28,13.31318814]
[1736180287289,0.12549,222.31,222.27,13.31318814]
[1736180287671,0.12549,222.31,222.26,13.31318814]
[1736180288701,0.12549,222.31,222.27,13.31318814]
[1736180288880,0.12549,222.31,222.28,13.31318814]
[1736180289900,0.12549,222.31,222.27,13.31318814]
[1736180290099,0.12549,222.31,222.26,13.31318814]
[1736180291315,37.34105214,222.31,222.24,13.31318814]
[1736180291707,24.027864,222.31,222.25,13.31318814]
[1736180292373,24.027864,222.31,222.2,24.56418814]
[1736180292374,37.34105214,222.31,222.24,13.31318814]
[1736180293206,24.027864,222.31,222.25,13.31318814]
[1736180293506,37.34105214,222.31,222.24,13.31318814]
[1736180294189,13.31318814,222.3,222.23,13.31318814]
[1736180294902,13.31318814,222.29,222.22,13.31318814]
[1736180295301,13.31318814,222.26,222.19,13.31318814]
[1736180295487,13.31318814,222.27,222.21,13.31318814]
[1736180295991,13.31318814,222.27,222.2,13.31318814]
[1736180296309,13.31318814,222.26,222.17,11.2525]
[1736180296501,13.31318814,222.25,222.18,13.31318814]
[1736180297208,13.31318814,222.24,222.17,13.31318814]
[1736180297508,13.31318814,222.24,222.18,13.31318814]
[1736180297690,13.31318814,222.24,222.05,11.2585]
[1736180297691,13.31318814,222.19,222.05,11.2585]
[1736180297885,0.12549,222.12,222.06,13.31318814]
[1736180298088,13.43867814,222.12,222.05,13.31318814]
[1736180298294,13.43867814,222.1,222.03,13.31318814]
[1736180298707,6.5381,222.11,222.06,13.31318814]
[1736180299278,0.12549,222.1,222.05,13.31318814]
[1736180299895,6.5381,222.11,222.06,13.31318814]
[1736180300894,1.6618,222.12,222.09,13.31318814]
[1736180301210,6.3874,222.16,222.11,13.31318814]
[1736180301408,6.3874,222.16,222.13,13.31318814]
[1736180301714,6.3874,222.16,222.12,13.31318814]
[1736180301913,6.3874,222.16,222.13,13.31318814]
[1736180303113,6.3874,222.16,222.07,33.07613885]
[1736180303114,6.3874,222.16,222.14,13.31318814]
[1736180303303,2.62,222.22,222.15,13.31318814]
[1736180303496,0.12549,222.21,222.15,13.31318814]
[1736180303897,0.12549,222.19,222.13,13.31318814]
[1736180304211,13.43867814,222.19,222.12,13.31318814]
[1736180305103,0.12549,222.17,222.11,13.31318814]
[1736180305302,0.12549,222.17,222.1,13.31318814]
[1736180305303,13.31318814,222.17,222.1,13.31318814]
[1736180305513,13.31318814,222.12,221.98,3.95864115]
[1736180305719,13.31318814,222.11,222.04,13.31318814]
[1736180305896,13.31318814,222.11,222.05,13.31318814]
[1736180306215,0.12549,222.18,222.09,5.0]
[1736180306516,13.31318814,222.17,222.13,5.0]
[1736180306705,13.31318814,222.18,222.13,5.0]
[1736180307019,15.93318814,222.19,222.13,10.0]
[1736180307404,13.31318814,222.18,222.13,10.0]
[1736180307815,15.93318814,222.19,222.13,10.0]
[1736180308209,2.62,222.19,222.13,23.31318814]
[1736180308405,2.62,222.19,222.06,11.2581]
[1736180308406,13.31318814,222.21,222.16,5.0]
[1736180308929,0.12549,222.2,222.16,5.0]
[1736180309107,0.12549,222.2,222.17,5.0]
[1736180309311,0.12549,222.2,222.18,5.0]
[1736180309611,21.39630649,222.23,222.18,5.0]
[1736180309806,21.39630649,222.24,222.18,10.0]
[1736180310013,21.39630649,222.23,222.18,5.0]
[1736180310317,0.12549,222.22,222.18,5.0]
[1736180310819,0.12549,222.2,222.16,10.0]
[1736180311037,21.52179649,222.2,222.16,5.0]
[1736180311227,21.52179649,222.2,222.14,10.0]
[1736180311398,21.39630649,222.19,222.14,10.0]
[1736180311798,21.39630649,222.18,222.14,10.0]
[1736180312027,21.39630649,222.19,222.14,10.0]
[1736180312523,21.39630649,222.18,222.12,10.0]
[1736180312724,21.39630649,222.16,222.12,5.0]
[1736180313821,0.12549,222.24,222.13,5.0]
[1736180313822,21.39630649,222.18,222.13,5.0]
[1736180314111,21.39630649,222.19,222.13,5.0]
[1736180314625,0.12549,222.19,222.13,26.39630649]
[1736180314827,21.52179649,222.19,222.13,5.0]
[1736180315608,21.39630649,222.2,222.15,10.0]
[1736180315813,21.39630649,222.22,222.15,31.39630649]
[1736180316023,21.52179649,222.2,222.15,5.0]
[1736180316730,0.12549,222.18,222.15,5.0]
[1736180317417,0.12549,222.18,222.11,5.0]
[1736180317418,0.12549,222.17,222.13,5.0]
[1736180317814,21.52179649,222.17,222.13,5.0]
[1736180318134,21.52179649,222.17,222.11,5.0]
[1736180318303,0.12549,222.13,222.09,5.0]
[1736180318626,21.52179649,222.13,222.09,5.0]
[1736180319135,0.12549,222.13,222.09,5.0]
[1736180319511,21.39630649,222.16,222.1,5.0]
[1736180319728,21.39630649,222.16,222.11,5.0]
[1736180320232,21.52179649,222.15,222.11,5.0]
[1736180320524,21.39630649,222.14,222.09,5.0]
[1736180320731,0.12549,222.13,222.09,5.0]
[1736180320911,0.12549,222.13,222.11,5.0]
[1736180321338,21.39630649,222.16,222.11,5.0]
[1736180321613,21.39630649,222.14,222.11,5.0]
[1736180321817,0.12549,222.12,222.09,5.0]
[1736180324329,21.39630649,222.04,221.99,5.0]
[1736180325232,21.39630649,222.04,221.97,5.0]
[1736180325534,21.39630649,222.03,221.97,5.0]
[1736180325930,21.39630649,222.04,221.99,5.0]
[1736180326129,21.39630649,222.0,221.94,5.0]
[1736180326915,21.39630649,221.99,221.94,5.0]
[1736180327221,21.39630649,221.99,221.92,21.39630649]
[1736180327222,21.39630649,221.99,221.92,26.39630649]
[1736180327409,21.39630649,221.97,221.92,5.0]
[1736180328333,21.39630649,221.93,221.87,5.0]
[1736180328522,0.12549,221.92,221.87,5.0]
[1736180328934,21.39630649,221.92,221.87,5.0]
[1736180329113,21.39630649,221.92,221.85,26.39630649]
[1736180329309,21.39630649,221.91,221.85,5.0]
[1736180329824,0.12549,221.91,221.85,26.39630649]
[1736180330027,0.12549,221.89,221.85,5.0]
[1736180330221,21.52179649,221.89,221.83,5.0]
[1736180330936,21.52179649,221.89,221.82,21.39630649]
[1736180331115,0.12549,221.87,221.81,26.39630649]
[1736180331430,21.52179649,221.87,221.81,5.0]
[1736180331632,0.12549,221.87,221.81,26.39630649]
[1736180332028,21.39630649,221.93,221.86,5.0]
[1736180332227,2.62,221.93,221.88,5.0]
[1736180332423,21.39630649,221.96,221.91,5.0]
[1736180332734,21.39630649,221.92,221.85,25.0]
[1736180333330,21.39630649,221.9,221.85,5.0]
[1736180333849,21.39630649,221.89,221.85,5.0]
[1736180334037,21.39630649,221.89,221.83,5.0]
[1736180334234,0.12549,221.88,221.82,21.39630649]
[1736180334457,21.52179649,221.86,221.8,5.0]
[1736180335059,21.39630649,221.9,221.86,5.0]
[1736180335418,24.01630649,221.98,221.84,5.0]
[1736180335419,21.39630649,221.89,221.84,5.0]
[1736180336143,21.39630649,221.97,221.91,5.0]
[1736180336339,21.39630649,221.99,221.92,21.39630649]
[1736180336548,21.39630649,222.01,221.95,26.39630649]
[1736180336723,21.39630649,222.01,221.95,5.0]
[1736180336918,21.39630649,222.02,221.97,5.0]
[1736180337741,10.8792,222.06,222.01,5.0]
[1736180337742,28.03730649,222.06,222.01,5.0]
[1736180337917,0.12549,222.05,222.01,5.0]
[1736180338118,21.39630649,222.05,222.01,5.0]
[1736180338344,21.39630649,222.06,222.01,5.0]
[1736180338640,21.52179649,222.04,221.99,5.0]
[1736180339014,21.52179649,222.04,222.01,5.0]
[1736180339015,0.12549,222.04,222.01,5.0]
[1736180339217,0.12549,222.04,221.99,5.0]
[1736180339418,21.52179649,222.04,221.99,5.0]
[1736180339647,0.12549,222.03,221.97,26.39630649]
[1736180339826,21.52179649,222.03,221.97,5.0]
[1736180340529,21.39630649,222.05,221.97,26.39630649]
[1736180340729,21.39630649,222.07,222.0,26.39630649]
[1736180340924,21.39630649,222.08,222.02,5.0]
[1736180341233,21.39630649,222.05,222.01,5.0]
[1736180342620,21.39630649,222.08,222.04,5.0]
[1736180342820,21.39630649,222.07,222.01,5.0]
[1736180343026,0.12549,222.06,222.01,5.0]
[1736180343326,1.5148,222.12,222.06,5.0]
[1736180343327,21.39630649,222.12,222.06,5.0]
[1736180343738,0.12549,222.11,222.06,5.0]
[1736180343941,21.52179649,222.11,222.04,21.39630649]
[1736180344248,6.5046,222.15,222.03,5.0]
[1736180344249,0.12549,222.08,222.03,26.39630649]
[1736180344457,21.39630649,222.11,222.07,5.0]
[1736180344623,0.12549,222.1,222.07,5.0]
[1736180344952,21.39630649,222.14,222.07,5.0]
[1736180345140,6.5046,222.15,222.09,5.0]
[1736180345141,21.39630649,222.15,222.09,5.0]
[1736180345652,0.12549,222.14,222.09,5.0]
[1736180345849,0.12549,222.11,222.06,5.0]
[1736180346049,0.12549,222.09,222.06,5.0]
[1736180346958,0.12549,222.08,222.06,5.0]
[1736180347267,21.39630649,222.07,222.01,5.0]
[1736180348868,21.39630649,222.07,222.0,21.39630649]
[1736180348869,21.39630649,222.06,221.99,5.0]
[1736180349159,21.39630649,222.06,222.02,5.0]
[1736180349336,21.39630649,222.06,222.0,5.0]
[1736180349658,21.39630649,222.05,222.01,5.0]
[1736180350358,0.12549,222.13,222.01,5.0]
[1736180350359,21.39630649,222.06,222.01,5.0]
[1736180350733,0.12549,222.05,222.01,5.0]
[1736180351332,21.39630649,222.11,222.05,5.0]
[1736180351552,21.39630649,222.1,222.05,5.0]
[1736180351756,0.12549,222.07,222.01,21.39630649]
[1736180351954,21.39630649,222.06,221.99,37.65790649]
[1736180352149,0.12549,222.07,222.02,5.0]
[1736180352657,0.12549,222.08,222.04,5.0]
[1736180353148,0.25098,222.08,222.02,26.39630649]
[1736180353545,0.25098,222.07,222.02,5.0]
[1736180354375,23.776884,222.12,222.03,21.39630649]
[1736180354670,21.39630649,222.07,222.02,5.0]
[1736180354871,0.12549,222.07,222.02,5.0]
[1736180355080,20.0,222.13,222.04,5.0]
[1736180355297,21.39630649,222.1,222.04,5.0]
[1736180355885,0.12549,222.09,222.04,26.39630649]
[1736180356067,21.52179649,222.09,222.04,5.0]
[1736180356268,21.39630649,222.08,222.04,5.0]
[1736180356452,21.39630649,222.08,222.02,5.0]
[1736180357095,21.39630649,222.08,222.04,5.0]
[1736180357259,21.39630649,222.08,222.02,5.0]
[1736180357583,21.39630649,222.08,222.04,5.0]
[1736180357765,21.39630649,222.08,222.02,5.0]
[1736180357968,0.12549,222.07,222.02,5.0]
[1736180358369,0.12549,222.07,222.04,5.0]
[1736180358591,21.39630649,222.09,222.04,5.0]